[Event "Early-Titled-Tuesday-Blitz-May-14-2024"]
[Site "Chess.com"]
[Date "2024.05.14"]
[Round "10"]
[White "Mandaloriana19"]
[Black "Arteler"]
[Result "0-1"]
[WhiteElo "2411"]
[BlackElo "2233"]
[TimeControl "180+1"]
[EndTime "9:58:09 PDT"]
[Termination "Arteler won by checkmate"]

1. b3 {[%clk 0:02:51.3]} 1... e5 {[%clk 0:02:56]} 2. Bb2 {[%clk 0:02:51.1]} 2...
Nc6 {[%clk 0:02:56.7]} 3. e3 {[%clk 0:02:50.7]} 3... d6 {[%clk 0:02:57.3]} 4.
Bb5 {[%clk 0:02:50.6]} 4... Bd7 {[%clk 0:02:54.7]} 5. Nf3 {[%clk 0:02:48.8]}
5... Nf6 {[%clk 0:02:54.3]} 6. O-O {[%clk 0:02:48.7]} 6... Be7 {[%clk
0:02:54.3]} 7. d4 {[%clk 0:02:48.8]} 7... exd4 {[%clk 0:02:53.5]} 8. exd4 {[%clk
0:02:46.9]} 8... O-O {[%clk 0:02:52.4]} 9. Nbd2 {[%clk 0:02:44.7]} 9... a6
{[%clk 0:02:48.1]} 10. Bd3 {[%clk 0:02:43.1]} 10... Nb4 {[%clk 0:02:34.6]} 11.
Bc4 {[%clk 0:02:42]} 11... b5 {[%clk 0:02:34.6]} 12. Be2 {[%clk 0:02:41.7]}
12... Re8 {[%clk 0:02:30.5]} 13. Re1 {[%clk 0:02:38.9]} 13... Bf8 {[%clk
0:02:26.9]} 14. g3 {[%clk 0:02:36.9]} 14... Bc6 {[%clk 0:02:13.3]} 15. c4 {[%clk
0:02:34.9]} 15... Qd7 {[%clk 0:02:09.1]} 16. a3 {[%clk 0:02:32.8]} 16... Rxe2
{[%clk 0:01:55.7]} 17. Rxe2 {[%clk 0:02:27.7]} 17... Nd3 {[%clk 0:01:46]} 18.
Bc3 {[%clk 0:02:26.6]} 18... Qg4 {[%clk 0:01:21.9]} 19. d5 {[%clk 0:02:23.3]}
19... Bd7 {[%clk 0:01:17.7]} 20. Re3 {[%clk 0:02:16.5]} 20... Nc5 {[%clk
0:01:12.5]} 21. Nd4 {[%clk 0:02:07.2]} 21... Qh3 {[%clk 0:01:11.7]} 22. Qf1
{[%clk 0:02:06.6]} 22... Qh5 {[%clk 0:01:10.3]} 23. b4 {[%clk 0:01:52.1]} 23...
Ng4 {[%clk 0:01:05.4]} 24. N2f3 {[%clk 0:01:18]} 24... Nxe3 {[%clk 0:01:01.3]}
25. fxe3 {[%clk 0:01:18.1]} 25... Na4 {[%clk 0:00:51.1]} 26. Bd2 {[%clk
0:01:16.5]} 26... Re8 {[%clk 0:00:51.8]} 27. cxb5 {[%clk 0:01:10.4]} 27... axb5
{[%clk 0:00:52.7]} 28. Nxb5 {[%clk 0:00:55.7]} 28... Bh3 {[%clk 0:00:33.7]} 29.
Qf2 {[%clk 0:00:32.9]} 29... Re7 {[%clk 0:00:29.2]} 30. Nfd4 {[%clk 0:00:20.6]}
30... Qxd5 {[%clk 0:00:28]} 31. Nc3 {[%clk 0:00:18]} 31... Qh5 {[%clk
0:00:27.3]} 32. Nxa4 {[%clk 0:00:14.3]} 32... c5 {[%clk 0:00:26.3]} 33. bxc5
{[%clk 0:00:13.7]} 33... dxc5 {[%clk 0:00:27.2]} 34. Nf3 {[%clk 0:00:11.9]}
34... Bg4 {[%clk 0:00:27]} 35. Ne1 {[%clk 0:00:10.8]} 35... Qe5 {[%clk
0:00:26.9]} 36. Nc3 {[%clk 0:00:09.7]} 36... g6 {[%clk 0:00:26.2]} 37. Nd3
{[%clk 0:00:10]} 37... Qd6 {[%clk 0:00:24.7]} 38. Nf4 {[%clk 0:00:10.2]} 38...
Bg7 {[%clk 0:00:24.4]} 39. Rc1 {[%clk 0:00:10]} 39... Rd7 {[%clk 0:00:23]} 40.
Be1 {[%clk 0:00:09.6]} 40... Re7 {[%clk 0:00:18]} 41. Qd2 {[%clk 0:00:07.6]}
41... Qe5 {[%clk 0:00:15]} 42. Bf2 {[%clk 0:00:08.1]} 42... Qf6 {[%clk
0:00:14.7]} 43. Ncd5 {[%clk 0:00:08.4]} 43... Rd7 {[%clk 0:00:12.7]} 44. Ne7+
{[%clk 0:00:09.3]} 44... Qxe7 {[%clk 0:00:12.7]} 45. Qa5 {[%clk 0:00:09]} 45...
Rd8 {[%clk 0:00:11.1]} 46. h3 {[%clk 0:00:09.2]} 46... Bf5 {[%clk 0:00:10.6]}
47. Qxc5 {[%clk 0:00:09.7]} 47... Rd1+ {[%clk 0:00:10.4]} 48. Kg2 {[%clk
0:00:09.3]} 48... Qe4+ {[%clk 0:00:09.9]} 49. Kh2 {[%clk 0:00:08.9]} 49... Qh1#
{[%clk 0:00:09.6]} 0-1

[Event "Early-Titled-Tuesday-Blitz-May-14-2024"]
[Site "Chess.com"]
[Date "2024.05.14"]
[Round "10"]
[White "vovachesss"]
[Black "xasid81"]
[Result "1-0"]
[WhiteElo "2826"]
[BlackElo "2613"]
[TimeControl "180+1"]
[EndTime "9:58:10 PDT"]
[Termination "vovachesss won by resignation"]

1. d4 {[%clk 0:03:00.9]} 1... d5 {[%clk 0:02:59.6]} 2. c4 {[%clk 0:03:00.9]}
2... c6 {[%clk 0:02:59.3]} 3. Nf3 {[%clk 0:03:00.8]} 3... Nf6 {[%clk 0:02:59.3]}
4. Nbd2 {[%clk 0:03:00.8]} 4... e6 {[%clk 0:02:59.2]} 5. Qc2 {[%clk 0:02:57.9]}
5... Nbd7 {[%clk 0:02:58.7]} 6. e4 {[%clk 0:02:58.2]} 6... dxe4 {[%clk
0:02:58.4]} 7. Nxe4 {[%clk 0:02:59.1]} 7... Nxe4 {[%clk 0:02:59]} 8. Qxe4 {[%clk
0:03:00]} 8... Bb4+ {[%clk 0:02:58.5]} 9. Bd2 {[%clk 0:03:00.5]} 9... Qa5 {[%clk
0:02:58.5]} 10. Bd3 {[%clk 0:02:52.1]} 10... Nf6 {[%clk 0:02:52.4]} 11. Qe3
{[%clk 0:02:39.1]} 11... Bxd2+ {[%clk 0:02:49.4]} 12. Nxd2 {[%clk 0:02:36.3]}
12... b6 {[%clk 0:02:45.4]} 13. O-O {[%clk 0:02:34.1]} 13... Bb7 {[%clk
0:02:43.2]} 14. c5 {[%clk 0:02:21]} 14... Nd5 {[%clk 0:02:34.4]} 15. Qg5 {[%clk
0:02:14.7]} 15... h6 {[%clk 0:01:54.7]} 16. Qxg7 {[%clk 0:02:05]} 16... Qxd2
{[%clk 0:01:53.3]} 17. Qxh8+ {[%clk 0:01:53.5]} 17... Ke7 {[%clk 0:01:51.4]} 18.
Qe5 {[%clk 0:00:46.2]} 18... Qxd3 {[%clk 0:01:50.4]} 19. Qd6+ {[%clk 0:00:45.5]}
19... Ke8 {[%clk 0:01:49.9]} 20. Rad1 {[%clk 0:00:35.2]} 20... Qg6 {[%clk
0:01:35.9]} 21. Rfe1 {[%clk 0:00:34.2]} 21... Rd8 {[%clk 0:01:31]} 22. Qe5
{[%clk 0:00:34.3]} 22... Qg5 {[%clk 0:01:26]} 23. g3 {[%clk 0:00:22.4]} 23...
Qxe5 {[%clk 0:01:22.3]} 24. dxe5 {[%clk 0:00:23.3]} 24... bxc5 {[%clk
0:01:17.5]} 25. f4 {[%clk 0:00:15.7]} 25... c4 {[%clk 0:01:13.5]} 26. Kf2 {[%clk
0:00:13.6]} 26... Nb4 {[%clk 0:01:12.5]} 27. Rxd8+ {[%clk 0:00:08.3]} 27... Kxd8
{[%clk 0:01:13.4]} 28. Rd1+ {[%clk 0:00:07.9]} 28... Kc7 {[%clk 0:01:08.2]} 29.
g4 {[%clk 0:00:04.7]} 29... c5 {[%clk 0:01:01.1]} 30. h4 {[%clk 0:00:04.6]}
30... Nd3+ {[%clk 0:01:00.9]} 31. Ke3 {[%clk 0:00:04.4]} 31... Nxb2 {[%clk
0:01:00.8]} 32. Rc1 {[%clk 0:00:05.1]} 32... Bd5 {[%clk 0:00:53.7]} 33. h5
{[%clk 0:00:05.3]} 33... Nd3 {[%clk 0:00:30.2]} 34. Rg1 {[%clk 0:00:05]} 34...
Kd7 {[%clk 0:00:20.6]} 35. g5 {[%clk 0:00:05.2]} 35... hxg5 {[%clk 0:00:20.9]}
36. Rxg5 {[%clk 0:00:05.8]} 36... Nb4 {[%clk 0:00:15]} 37. h6 {[%clk 0:00:04.5]}
37... c3 {[%clk 0:00:15.6]} 38. h7 {[%clk 0:00:04.3]} 38... c2 {[%clk
0:00:15.4]} 39. Rg1 {[%clk 0:00:03.6]} 39... Nxa2 {[%clk 0:00:15.8]} 40. Kd2
{[%clk 0:00:01.4]} 40... Be4 {[%clk 0:00:16.3]} 41. h8=Q {[%clk 0:00:01.4]}
41... c4 {[%clk 0:00:16.9]} 42. Qg7 {[%clk 0:00:01.8]} 42... c3+ {[%clk
0:00:17.1]} 43. Ke3 {[%clk 0:00:02.5]} 43... Bg6 {[%clk 0:00:16.1]} 44. f5
{[%clk 0:00:02.7]} 44... exf5 {[%clk 0:00:14.2]} 45. Qf6 {[%clk 0:00:03.3]}
45... f4+ {[%clk 0:00:13.8]} 46. Kxf4 {[%clk 0:00:03.3]} 46... c1=Q+ {[%clk
0:00:14.7]} 47. Rxc1 {[%clk 0:00:03.8]} 47... Nxc1 {[%clk 0:00:15.4]} 48. Qd6+
{[%clk 0:00:04.4]} 48... Ke8 {[%clk 0:00:15]} 49. Kg5 {[%clk 0:00:04.1]} 49...
Ne2 {[%clk 0:00:09.7]} 50. Kf6 {[%clk 0:00:04.2]} 1-0

[Event "Early-Titled-Tuesday-Blitz-May-14-2024"]
[Site "Chess.com"]
[Date "2024.05.14"]
[Round "10"]
[White "RojonR"]
[Black "lamomiajunior"]
[Result "0-1"]
[WhiteElo "2618"]
[BlackElo "2767"]
[TimeControl "180+1"]
[EndTime "9:58:11 PDT"]
[Termination "lamomiajunior won on time"]

1. e4 {[%clk 0:03:00.9]} 1... c5 {[%clk 0:02:59.8]} 2. Nf3 {[%clk 0:03:00.6]}
2... d6 {[%clk 0:02:59.8]} 3. d4 {[%clk 0:03:00.3]} 3... cxd4 {[%clk 0:03:00.7]}
4. Qxd4 {[%clk 0:03:00.9]} 4... Nc6 {[%clk 0:03:00.5]} 5. Bb5 {[%clk 0:03:01.1]}
5... Bd7 {[%clk 0:03:00.7]} 6. Bxc6 {[%clk 0:03:01.8]} 6... Bxc6 {[%clk
0:03:00.8]} 7. Nc3 {[%clk 0:03:02.4]} 7... e6 {[%clk 0:03:00]} 8. Bg5 {[%clk
0:03:02.5]} 8... Nf6 {[%clk 0:03:00.2]} 9. O-O-O {[%clk 0:03:02.2]} 9... Be7
{[%clk 0:03:00.4]} 10. Qd3 {[%clk 0:03:02.9]} 10... O-O {[%clk 0:02:58.6]} 11.
Nd4 {[%clk 0:03:02.3]} 11... Rc8 {[%clk 0:02:56.7]} 12. f4 {[%clk 0:02:59.7]}
12... a6 {[%clk 0:02:54.8]} 13. h4 {[%clk 0:02:57.5]} 13... Bd7 {[%clk
0:02:53.5]} 14. Kb1 {[%clk 0:02:51.6]} 14... Qc7 {[%clk 0:02:52.6]} 15. g4
{[%clk 0:02:50.6]} 15... b5 {[%clk 0:02:48.9]} 16. Nce2 {[%clk 0:02:48.5]} 16...
Rfe8 {[%clk 0:02:44.8]} 17. Bxf6 {[%clk 0:02:43.5]} 17... Bxf6 {[%clk
0:02:44.5]} 18. g5 {[%clk 0:02:44.4]} 18... Bxd4 {[%clk 0:02:38.4]} 19. Nxd4
{[%clk 0:02:43.7]} 19... e5 {[%clk 0:02:37.9]} 20. Ne2 {[%clk 0:02:28.6]} 20...
Bg4 {[%clk 0:02:35.3]} 21. f5 {[%clk 0:02:23.2]} 21... d5 {[%clk 0:02:30.4]} 22.
Rhg1 {[%clk 0:02:12]} 22... dxe4 {[%clk 0:02:15.5]} 23. Qxe4 {[%clk 0:02:12.9]}
23... Bxe2 {[%clk 0:02:09.9]} 24. Qxe2 {[%clk 0:02:13.8]} 24... e4 {[%clk
0:02:10.8]} 25. g6 {[%clk 0:02:12]} 25... fxg6 {[%clk 0:02:09.9]} 26. fxg6
{[%clk 0:02:11.6]} 26... h6 {[%clk 0:02:10.6]} 27. Rgf1 {[%clk 0:02:08.3]} 27...
Qg3 {[%clk 0:02:05.8]} 28. h5 {[%clk 0:02:04.7]} 28... Re7 {[%clk 0:01:58.3]}
29. Rd4 {[%clk 0:01:57.1]} 29... e3 {[%clk 0:01:55.2]} 30. Rdf4 {[%clk
0:01:46.7]} 30... Rd8 {[%clk 0:01:49.8]} 31. a3 {[%clk 0:01:35.3]} 31... Qg5
{[%clk 0:01:43.2]} 32. Rf5 {[%clk 0:01:30.8]} 32... Qg3 {[%clk 0:01:42.4]} 33.
R5f4 {[%clk 0:01:30.3]} 33... Ree8 {[%clk 0:01:40.4]} 34. a4 {[%clk 0:01:27.8]}
34... Rd2 {[%clk 0:01:38.8]} 35. Qe1 {[%clk 0:01:13.5]} 35... Qh2 {[%clk
0:01:29]} 36. Qxe3 {[%clk 0:01:06.7]} 36... Rdd8 {[%clk 0:01:15.2]} 37. Qb3+
{[%clk 0:01:01.1]} 37... Kh8 {[%clk 0:01:15.4]} 38. axb5 {[%clk 0:00:53.5]}
38... axb5 {[%clk 0:01:15.3]} 39. Rf7 {[%clk 0:00:49.2]} 39... Qxh5 {[%clk
0:01:12.3]} 40. Qe6 {[%clk 0:00:09.1]} 40... Qc5 {[%clk 0:00:54.7]} 41. Qb3
{[%clk 0:00:02.4]} 41... Ra8 {[%clk 0:00:51.8]} 42. Rxg7 {[%clk 0:00:02.1]}
42... Qc4 {[%clk 0:00:40.8]} 43. Rh7+ {[%clk 0:00:01.9]} 43... Kg8 {[%clk
0:00:40.8]} 44. Qxc4+ {[%clk 0:00:01.6]} 44... bxc4 {[%clk 0:00:41.7]} 45. Rxh6
{[%clk 0:00:02.1]} 45... Re7 {[%clk 0:00:41.3]} 46. Rh4 {[%clk 0:00:02.7]} 46...
Rea7 {[%clk 0:00:41.5]} 47. Kc1 {[%clk 0:00:01.3]} 47... Ra1+ {[%clk 0:00:41.5]}
48. Kd2 {[%clk 0:00:02.2]} 48... Rxf1 {[%clk 0:00:42.3]} 49. Rxc4 {[%clk
0:00:02.7]} 49... Rf6 {[%clk 0:00:42.3]} 50. Kc3 {[%clk 0:00:03]} 50... Rxg6
{[%clk 0:00:42.4]} 51. b3 {[%clk 0:00:03.9]} 51... Rg3+ {[%clk 0:00:41.5]} 52.
Kb2 {[%clk 0:00:04.4]} 52... Kf7 {[%clk 0:00:41.5]} 53. Rc7+ {[%clk 0:00:04.5]}
53... Ke6 {[%clk 0:00:41.9]} 54. Rc4 {[%clk 0:00:04.2]} 54... Kd5 {[%clk
0:00:42]} 55. Rc7 {[%clk 0:00:04.3]} 55... Ra6 {[%clk 0:00:41.1]} 56. Rd7+
{[%clk 0:00:04.4]} 56... Rd6 {[%clk 0:00:41.4]} 57. Rh7 {[%clk 0:00:04.5]} 57...
Rg2 {[%clk 0:00:41.5]} 58. Rh5+ {[%clk 0:00:03.7]} 58... Kc6 {[%clk 0:00:41.9]}
59. Rh3 {[%clk 0:00:03.2]} 59... Kb6 {[%clk 0:00:41.7]} 60. Rc3 {[%clk
0:00:00.2]} 60... Rc6 {[%clk 0:00:41.8]} 61. Rxc6+ {[%clk 0:00:00.1]} 61... Kxc6
{[%clk 0:00:42.7]} 0-1

[Event "Early-Titled-Tuesday-Blitz-May-14-2024"]
[Site "Chess.com"]
[Date "2024.05.14"]
[Round "10"]
[White "Nasrin_Babayeva"]
[Black "campochess"]
[Result "1-0"]
[WhiteElo "1977"]
[BlackElo "2097"]
[TimeControl "180+1"]
[EndTime "9:58:14 PDT"]
[Termination "Nasrin_Babayeva won on time"]

1. c4 {[%clk 0:01:17.1]} 1... e6 {[%clk 0:02:57.6]} 2. g3 {[%clk 0:01:17.4]}
2... c6 {[%clk 0:02:57.6]} 3. Bg2 {[%clk 0:01:18.3]} 3... d5 {[%clk 0:02:57.7]}
4. Nf3 {[%clk 0:01:17.3]} 4... Nf6 {[%clk 0:02:57.5]} 5. b3 {[%clk 0:01:16.9]}
5... Be7 {[%clk 0:02:56]} 6. Bb2 {[%clk 0:01:17.5]} 6... Nbd7 {[%clk 0:02:56.1]}
7. d4 {[%clk 0:01:18]} 7... O-O {[%clk 0:02:55.6]} 8. O-O {[%clk 0:01:18.2]}
8... Ne4 {[%clk 0:02:55.7]} 9. e3 {[%clk 0:01:18.6]} 9... f5 {[%clk 0:02:54.4]}
10. Nc3 {[%clk 0:01:19.1]} 10... Ndf6 {[%clk 0:02:54.3]} 11. Ne5 {[%clk
0:01:17.9]} 11... Nxc3 {[%clk 0:02:51.8]} 12. Bxc3 {[%clk 0:01:17.8]} 12... Nd7
{[%clk 0:02:50.9]} 13. Nxd7 {[%clk 0:01:15.4]} 13... Bxd7 {[%clk 0:02:50.2]} 14.
f3 {[%clk 0:01:15]} 14... b5 {[%clk 0:02:43.4]} 15. c5 {[%clk 0:01:11.1]} 15...
a5 {[%clk 0:02:40.7]} 16. a3 {[%clk 0:01:11.4]} 16... Bf6 {[%clk 0:02:34.8]} 17.
e4 {[%clk 0:01:09.4]} 17... Be8 {[%clk 0:02:25.4]} 18. e5 {[%clk 0:00:57]} 18...
Be7 {[%clk 0:02:23.7]} 19. f4 {[%clk 0:00:55.4]} 19... Kh8 {[%clk 0:02:18.6]}
20. b4 {[%clk 0:00:55.2]} 20... axb4 {[%clk 0:02:13.9]} 21. axb4 {[%clk
0:00:54.8]} 21... Rxa1 {[%clk 0:02:13.6]} 22. Qxa1 {[%clk 0:00:55.7]} 22... Bh5
{[%clk 0:02:12.8]} 23. Rf2 {[%clk 0:00:50.1]} 23... g5 {[%clk 0:02:02.1]} 24.
Bd2 {[%clk 0:00:44.3]} 24... g4 {[%clk 0:01:58]} 25. Be1 {[%clk 0:00:37.8]}
25... Bg6 {[%clk 0:01:45.7]} 26. Ra2 {[%clk 0:00:37.8]} 26... h5 {[%clk
0:01:45.7]} 27. Ra7 {[%clk 0:00:33.8]} 27... h4 {[%clk 0:01:36.2]} 28. Qa6
{[%clk 0:00:32.2]} 28... hxg3 {[%clk 0:01:28.4]} 29. Bxg3 {[%clk 0:00:28.2]}
29... Be8 {[%clk 0:00:50.7]} 30. Qb7 {[%clk 0:00:18.4]} 30... Rf7 {[%clk
0:00:19.8]} 31. Ra8 {[%clk 0:00:17.9]} 31... Qxa8 {[%clk 0:00:19.9]} 32. Qxa8
{[%clk 0:00:17]} 32... Rf8 {[%clk 0:00:20.1]} 33. Bf1 {[%clk 0:00:12.2]} 33...
Kg7 {[%clk 0:00:19.7]} 34. h3 {[%clk 0:00:08.9]} 34... Bh5 {[%clk 0:00:17.8]}
35. Qxc6 {[%clk 0:00:07.3]} 35... gxh3 {[%clk 0:00:16]} 36. Bxh3 {[%clk
0:00:06.5]} 36... Bf7 {[%clk 0:00:15.7]} 37. Qxb5 {[%clk 0:00:06.4]} 37... Rh8
{[%clk 0:00:14.5]} 38. Kg2 {[%clk 0:00:05.1]} 38... Rg8 {[%clk 0:00:14]} 39. Qd7
{[%clk 0:00:05.6]} 39... Re8 {[%clk 0:00:09]} 40. b5 {[%clk 0:00:06.1]} 40...
Kf8 {[%clk 0:00:04]} 41. b6 {[%clk 0:00:06]} 41... Rd8 {[%clk 0:00:04.2]} 42.
Qc7 {[%clk 0:00:04.4]} 42... Ra8 {[%clk 0:00:03]} 43. b7 {[%clk 0:00:04.6]}
43... Ra2+ {[%clk 0:00:02.7]} 44. Bf2 {[%clk 0:00:04.8]} 44... Rb2 {[%clk
0:00:02.6]} 45. b8=Q+ {[%clk 0:00:04.8]} 45... Rxb8 {[%clk 0:00:02.4]} 46. Qxb8+
{[%clk 0:00:05.7]} 46... Kg7 {[%clk 0:00:02.3]} 47. c6 {[%clk 0:00:05.7]} 1-0

[Event "Early-Titled-Tuesday-Blitz-May-14-2024"]
[Site "Chess.com"]
[Date "2024.05.14"]
[Round "10"]
[White "Carolinamazariegos88"]
[Black "Ariadna_Atreides"]
[Result "1-0"]
[WhiteElo "1711"]
[BlackElo "2201"]
[TimeControl "180+1"]
[EndTime "9:58:18 PDT"]
[Termination "Carolinamazariegos88 won on time"]

1. c4 {[%clk 0:03:00.6]} 1... e5 {[%clk 0:02:39.5]} 2. Nc3 {[%clk 0:02:59.9]}
2... Bb4 {[%clk 0:02:37.1]} 3. g3 {[%clk 0:02:59.9]} 3... Ne7 {[%clk 0:02:32.1]}
4. Bg2 {[%clk 0:03:00]} 4... O-O {[%clk 0:02:31.5]} 5. e3 {[%clk 0:02:59.4]}
5... d6 {[%clk 0:02:29.3]} 6. Nge2 {[%clk 0:02:59.6]} 6... a5 {[%clk 0:02:26.2]}
7. O-O {[%clk 0:02:58.6]} 7... Nbc6 {[%clk 0:02:23.7]} 8. d4 {[%clk 0:02:54]}
8... exd4 {[%clk 0:02:16.9]} 9. exd4 {[%clk 0:02:54.1]} 9... Bg4 {[%clk
0:02:16.4]} 10. h3 {[%clk 0:02:54.4]} 10... Bxe2 {[%clk 0:02:03.7]} 11. Nxe2
{[%clk 0:02:53.7]} 11... a4 {[%clk 0:01:59.9]} 12. a3 {[%clk 0:02:45.3]} 12...
Ba5 {[%clk 0:01:59.5]} 13. Qxa4 {[%clk 0:02:39.3]} 13... Bd2 {[%clk 0:01:49.4]}
14. Qd1 {[%clk 0:02:31.6]} 14... Bxc1 {[%clk 0:01:47.3]} 15. Rxc1 {[%clk
0:02:31.3]} 15... Re8 {[%clk 0:01:46.1]} 16. Nf4 {[%clk 0:02:29.5]} 16... Nf5
{[%clk 0:01:44]} 17. d5 {[%clk 0:02:16.7]} 17... Ne5 {[%clk 0:01:36.5]} 18. Nd3
{[%clk 0:02:13.3]} 18... Nd4 {[%clk 0:01:28.6]} 19. Nxe5 {[%clk 0:02:06.8]}
19... dxe5 {[%clk 0:01:29.5]} 20. Re1 {[%clk 0:02:00.3]} 20... c5 {[%clk
0:01:14.5]} 21. Qd3 {[%clk 0:01:57.3]} 21... Qd6 {[%clk 0:01:09.5]} 22. Be4
{[%clk 0:01:42.5]} 22... g6 {[%clk 0:01:09.3]} 23. g4 {[%clk 0:01:42.8]} 23...
Kh8 {[%clk 0:01:02.8]} 24. Qg3 {[%clk 0:01:35.8]} 24... f5 {[%clk 0:00:59.5]}
25. Bb1 {[%clk 0:01:30.9]} 25... f4 {[%clk 0:00:39.2]} 26. Qd3 {[%clk
0:01:23.5]} 26... f3 {[%clk 0:00:31.9]} 27. Re3 {[%clk 0:00:33.6]} 27... Ne2+
{[%clk 0:00:29.2]} 28. Rxe2 {[%clk 0:00:33.1]} 28... fxe2 {[%clk 0:00:30.1]} 29.
Qxe2 {[%clk 0:00:33.7]} 29... Qf6 {[%clk 0:00:23.8]} 30. Be4 {[%clk 0:00:27.6]}
30... Qf4 {[%clk 0:00:22.8]} 31. Rc3 {[%clk 0:00:23.4]} 31... Rf8 {[%clk
0:00:17]} 32. Kg2 {[%clk 0:00:20.4]} 32... b6 {[%clk 0:00:15.2]} 33. Rf3 {[%clk
0:00:19]} 33... Qg5 {[%clk 0:00:14.2]} 34. Rxf8+ {[%clk 0:00:18.8]} 34... Rxf8
{[%clk 0:00:14.8]} 35. b4 {[%clk 0:00:19]} 35... h5 {[%clk 0:00:14.2]} 36. bxc5
{[%clk 0:00:17.5]} 36... bxc5 {[%clk 0:00:15.1]} 37. a4 {[%clk 0:00:15.6]} 37...
hxg4 {[%clk 0:00:13.7]} 38. Qxg4 {[%clk 0:00:15.1]} 38... Qxg4+ {[%clk
0:00:11.3]} 39. hxg4 {[%clk 0:00:15.5]} 39... Rd8 {[%clk 0:00:09.1]} 40. Kf3
{[%clk 0:00:13.1]} 40... Kg7 {[%clk 0:00:08.2]} 41. g5 {[%clk 0:00:12.7]} 41...
Kf7 {[%clk 0:00:07.9]} 42. Kg4 {[%clk 0:00:12.8]} 42... Rd6 {[%clk 0:00:07.5]}
43. f3 {[%clk 0:00:12.4]} 43... Ra6 {[%clk 0:00:06.9]} 44. Bc2 {[%clk
0:00:12.8]} 44... Ke7 {[%clk 0:00:05.8]} 45. f4 {[%clk 0:00:12.6]} 45... exf4
{[%clk 0:00:05.1]} 46. Kxf4 {[%clk 0:00:12.8]} 46... Kd6 {[%clk 0:00:03.6]} 47.
Bxg6 {[%clk 0:00:12]} 47... Rxa4 {[%clk 0:00:03.6]} 48. Bd3 {[%clk 0:00:12.6]}
48... Ra3 {[%clk 0:00:03.9]} 49. Ke4 {[%clk 0:00:12.9]} 49... Ra1 {[%clk
0:00:03.1]} 50. g6 {[%clk 0:00:12.9]} 50... Rg1 {[%clk 0:00:02.5]} 51. Kf5
{[%clk 0:00:13.2]} 51... Rg2 {[%clk 0:00:00.3]} 52. Kf6 {[%clk 0:00:11.6]} 1-0

[Event "Early-Titled-Tuesday-Blitz-May-14-2024"]
[Site "Chess.com"]
[Date "2024.05.14"]
[Round "10"]
[White "rollercoaster29"]
[Black "PawnEatingZombie"]
[Result "1-0"]
[WhiteElo "2456"]
[BlackElo "2294"]
[TimeControl "180+1"]
[EndTime "9:58:19 PDT"]
[Termination "rollercoaster29 won on time"]

1. d4 {[%clk 0:03:00.9]} 1... Nf6 {[%clk 0:02:58]} 2. Bf4 {[%clk 0:02:59.9]}
2... g6 {[%clk 0:02:55.9]} 3. e3 {[%clk 0:02:57.2]} 3... Bg7 {[%clk 0:02:55.7]}
4. Nf3 {[%clk 0:02:57.1]} 4... c5 {[%clk 0:02:50.1]} 5. d5 {[%clk 0:02:52.8]}
5... d6 {[%clk 0:02:48.8]} 6. Nc3 {[%clk 0:02:35.7]} 6... Na6 {[%clk 0:02:41.3]}
7. h3 {[%clk 0:02:31.9]} 7... Nc7 {[%clk 0:02:40.8]} 8. a4 {[%clk 0:02:31.3]}
8... a6 {[%clk 0:02:37.9]} 9. e4 {[%clk 0:02:20.9]} 9... Nd7 {[%clk 0:02:37.2]}
10. a5 {[%clk 0:02:18.7]} 10... Rb8 {[%clk 0:02:36.9]} 11. Nd2 {[%clk
0:02:12.7]} 11... O-O {[%clk 0:02:29.9]} 12. Nc4 {[%clk 0:02:10.5]} 12... b5
{[%clk 0:02:30]} 13. axb6 {[%clk 0:02:10]} 13... Nxb6 {[%clk 0:02:30.3]} 14. Ne3
{[%clk 0:01:58.1]} 14... Bd7 {[%clk 0:02:22.5]} 15. h4 {[%clk 0:01:48.3]} 15...
Nb5 {[%clk 0:02:13.5]} 16. Nxb5 {[%clk 0:01:31.8]} 16... axb5 {[%clk 0:02:13.3]}
17. Qc1 {[%clk 0:01:07.1]} 17... Na4 {[%clk 0:01:58.5]} 18. c3 {[%clk
0:00:55.7]} 18... b4 {[%clk 0:01:58.7]} 19. Nd1 {[%clk 0:00:49.4]} 19... Nxb2
{[%clk 0:01:47.5]} 20. Qxb2 {[%clk 0:00:38.8]} 20... bxc3 {[%clk 0:01:47.6]} 21.
Qc2 {[%clk 0:00:38.9]} 21... Qb6 {[%clk 0:01:14.3]} 22. Nxc3 {[%clk 0:00:33.4]}
22... Qb3 {[%clk 0:00:48.7]} 23. Qxb3 {[%clk 0:00:28.8]} 23... Rxb3 {[%clk
0:00:47.7]} 24. Bd2 {[%clk 0:00:13]} 24... Bxc3 {[%clk 0:00:43.8]} 25. Bxc3
{[%clk 0:00:13]} 25... Rxc3 {[%clk 0:00:43.8]} 26. Kd2 {[%clk 0:00:12.3]} 26...
Rb3 {[%clk 0:00:39.5]} 27. Ra7 {[%clk 0:00:11.6]} 27... Rd8 {[%clk 0:00:35.2]}
28. h5 {[%clk 0:00:09.3]} 28... g5 {[%clk 0:00:35.4]} 29. h6 {[%clk 0:00:09.2]}
29... f6 {[%clk 0:00:31]} 30. Bc4 {[%clk 0:00:08.5]} 30... Rb2+ {[%clk
0:00:29.2]} 31. Ke3 {[%clk 0:00:08.8]} 31... Kf7 {[%clk 0:00:26.1]} 32. g3
{[%clk 0:00:08.4]} 32... Be8 {[%clk 0:00:14.9]} 33. f4 {[%clk 0:00:07.1]} 33...
gxf4+ {[%clk 0:00:14.3]} 34. gxf4 {[%clk 0:00:07.4]} 34... Rdb8 {[%clk
0:00:13.3]} 35. Raa1 {[%clk 0:00:04.4]} 35... Rg2 {[%clk 0:00:12.2]} 36. Rag1
{[%clk 0:00:03.9]} 36... Rbb2 {[%clk 0:00:11.6]} 37. Rxg2 {[%clk 0:00:02.2]}
37... Rxg2 {[%clk 0:00:12.5]} 38. Bf1 {[%clk 0:00:02.1]} 38... Rg3+ {[%clk
0:00:11.9]} 39. Kf2 {[%clk 0:00:02]} 39... Ra3 {[%clk 0:00:10.1]} 40. Bh3 {[%clk
0:00:02.6]} 40... c4 {[%clk 0:00:08.1]} 41. Be6+ {[%clk 0:00:02.5]} 41... Kf8
{[%clk 0:00:07.6]} 42. Bf5 {[%clk 0:00:03]} 42... Ra2+ {[%clk 0:00:05.3]} 43.
Ke3 {[%clk 0:00:02.9]} 43... c3 {[%clk 0:00:04.4]} 44. Bxh7 {[%clk 0:00:02.6]}
44... Bb5 {[%clk 0:00:04.7]} 45. Bf5 {[%clk 0:00:01.9]} 45... Re2+ {[%clk
0:00:04.7]} 46. Kf3 {[%clk 0:00:02.1]} 46... c2 {[%clk 0:00:02.1]} 47. h7 {[%clk
0:00:02.5]} 1-0